bitfinex-derivatives/quotes_BTCF0:USTF0_20250411
["timestamp","ask_amount","ask_price","bid_price","bid_amount"]
[1744376050652,0.4826792,82096.0,82095.0,0.00018266]
[1744376050961,0.4826792,82096.0,82095.0,0.00022266]
[1744376051554,0.4826792,82096.0,82095.0,0.12210336]
[1744376053354,0.4826792,82096.0,82095.0,0.00022266]
[1744376053553,0.4826792,82096.0,82095.0,0.12210336]
[1744376054464,0.4826792,82096.0,82095.0,0.00022266]
[1744376054767,0.4826792,82096.0,82095.0,0.12210336]
[1744376055360,0.4826792,82096.0,82095.0,0.00022266]
[1744376055556,0.4826792,82096.0,82095.0,0.00018266]
[1744376055752,0.4826792,82096.0,82095.0,0.00022266]
[1744376057869,0.4826792,82096.0,82095.0,0.12210336]
[1744376061366,0.6872792,82096.0,82095.0,0.12210336]
[1744376062663,0.6872792,82096.0,82095.0,0.00022266]
[1744376063066,0.6872792,82096.0,82095.0,0.12210336]
[1744376063369,0.6872792,82096.0,82095.0,0.00022266]
[1744376063564,0.6872792,82096.0,82095.0,0.00018266]
[1744376063764,0.6872792,82096.0,82095.0,0.00022266]
[1744376064070,0.6872792,82096.0,82095.0,0.00018266]
[1744376064260,0.6872792,82096.0,82095.0,0.00022266]
[1744376065658,0.6872792,82096.0,82095.0,0.12210336]
[1744376065974,0.5877792,82096.0,82095.0,0.12210336]
[1744376066159,0.5877792,82096.0,82095.0,0.32630336]
[1744376066362,0.4826792,82096.0,82095.0,0.32630336]
[1744376067070,0.6793792,82096.0,82095.0,0.32630336]
[1744376067270,0.6793792,82096.0,82095.0,0.22200336]
[1744376068272,0.3185792,82096.0,82095.0,0.22200336]
[1744376069975,0.1218776,82098.0,82097.0,0.1218777]
[1744376070367,0.1218776,82098.0,82097.0,0.2185777]
[1744376070569,0.1218776,82098.0,82097.0,0.3165777]
[1744376072268,0.0609333,82105.0,82104.0,0.0609336]
[1744376072478,0.1827959,82107.0,82105.0,0.0609328]
[1744376072665,0.1827959,82107.0,82106.0,0.0609322]
[1744376072871,0.2836959,82107.0,82106.0,0.1576322]
[1744376073269,0.2836959,82107.0,82106.0,0.1576722]
[1744376073673,0.2836959,82107.0,82106.0,0.2557722]
[1744376074464,0.2836959,82107.0,82106.0,0.09674]
[1744376074674,0.2836959,82107.0,82106.0,4e-05]
[1744376074869,0.3852959,82107.0,82106.0,4e-05]
[1744376075071,0.1218718,82101.0,82100.0,0.1218728]
[1744376075279,0.4826718,82101.0,82100.0,0.2171268]
[1744376075575,0.2238718,82101.0,82100.0,0.2171268]
[1744376075778,0.2238718,82101.0,82100.0,0.095254]
[1744376076171,0.2238718,82101.0,82100.0,0.2170733]
[1744376076482,0.2238718,82101.0,82100.0,0.2171133]
[1744376078283,0.2238718,82101.0,82100.0,0.09524]
[1744376079283,0.2238718,82101.0,82100.0,0.2171133]
[1744376079984,0.2238718,82101.0,82100.0,0.09524]
[1744376080282,0.2831316,82101.0,82100.0,0.09524]
[1744376082189,0.2831316,82101.0,82100.0,0.2171133]
[1744376082489,0.0592598,82101.0,82100.0,0.2171133]
[1744376082982,0.1811316,82101.0,82100.0,0.2171133]
[1744376083177,0.1811316,82101.0,82100.0,0.3193133]
[1744376084182,0.2821316,82101.0,82100.0,0.3193133]
[1744376086292,0.1811316,82101.0,82100.0,0.3193133]
[1744376087584,0.0592598,82101.0,82100.0,0.3193133]
[1744376089489,0.1811316,82101.0,82100.0,0.3193133]
[1744376089689,0.0592598,82101.0,82100.0,0.3193133]
[1744376090090,0.1811316,82101.0,82100.0,0.3193133]
[1744376090590,0.1811316,82101.0,82100.0,0.3192733]
[1744376090888,0.0592598,82101.0,82100.0,0.33083992]
[1744376091588,0.26784477,82101.0,82100.0,0.2170733]
[1744376091793,0.36724477,82101.0,82100.0,0.2171133]
[1744376091982,0.46214477,82101.0,82100.0,0.2171133]
[1744376092180,0.46214477,82101.0,82100.0,4e-05]
[1744376092488,0.46214477,82101.0,82100.0,0.1219133]
[1744376092684,0.46214477,82101.0,82100.0,0.1218733]
[1744376092887,0.46214477,82101.0,82100.0,0.1219133]
[1744376095595,0.3754316,82101.0,82100.0,0.3238133]
[1744376095896,0.2805316,82101.0,82100.0,0.3238133]
[1744376096099,0.1811316,82101.0,82100.0,0.4267133]
[1744376096391,0.0592598,82101.0,82100.0,0.4267133]
[1744376098896,0.1218668,82105.0,82104.0,0.1218673]
[1744376100596,0.2247668,82105.0,82104.0,0.1218673]
[1744376102599,0.1218668,82105.0,82104.0,0.1218673]
[1744376104391,0.3226668,82105.0,82104.0,0.1218673]
[1744376105300,0.3226668,82105.0,82104.0,0.1219073]
[1744376105501,0.3226668,82105.0,82104.0,0.1218673]
[1744376105691,0.3226668,82105.0,82104.0,0.1219073]
[1744376106289,0.1036,82105.0,82104.0,0.1219073]
[1744376106496,0.1824619,82108.0,82107.0,0.1218629]
[1744376107002,0.3043233,82108.0,82107.0,0.1218629]
[1744376107504,0.1824619,82108.0,82107.0,0.1218629]
[1744376107698,0.3043233,82108.0,82107.0,0.1218629]
[1744376107905,0.1824619,82108.0,82107.0,0.1218629]
[1744376108108,0.3043233,82108.0,82107.0,0.1218629]
[1744376108297,0.4037233,82108.0,82107.0,0.1218629]
[1744376109404,0.1824619,82108.0,82107.0,0.1218629]
[1744376109906,0.00018266,82112.0,82111.0,0.121857]
[1744376110101,0.21917571,82112.0,82111.0,0.482657]
[1744376110302,0.21917571,82112.0,82111.0,0.578257]
[1744376112198,0.21917571,82112.0,82111.0,0.676657]
[1744376113499,0.21917571,82112.0,82111.0,0.774357]
[1744376114106,0.00018266,82112.0,82111.0,0.774357]
[1744376116513,0.00018266,82112.0,82111.0,0.675997]
[1744376116916,0.00018266,82112.0,82111.0,0.774797]
[1744376118009,0.32613816,82112.0,82111.0,0.774797]
[1744376118210,0.32613816,82112.0,82111.0,0.580397]
[1744376118509,0.20428266,82112.0,82111.0,0.580357]
[1744376118820,0.20428266,82112.0,82111.0,0.580397]
[1744376119118,0.20428266,82112.0,82111.0,0.219597]
[1744376120019,0.32613816,82112.0,82111.0,0.121897]
[1744376120218,0.32613816,82112.0,82111.0,0.219797]
[1744376121114,0.32613816,82112.0,82111.0,0.121857]
[1744376121314,0.68693816,82112.0,82111.0,0.121897]
[1744376121513,0.0609307,82108.0,82096.0,0.0609395]
[1744376121721,0.1218792,82096.0,82095.0,0.00018266]
[1744376122012,0.1218792,82096.0,82095.0,0.12206336]
[1744376122323,0.4093792,82096.0,82095.0,0.00018266]
[1744376122717,0.7701792,82096.0,82095.0,0.12210336]
[1744376123220,0.78184243,82096.0,82095.0,0.12210336]
[1744376123519,0.78184243,82096.0,82095.0,0.00022266]
[1744376125421,0.84110501,82096.0,82095.0,0.12210336]
[1744376125618,0.84110501,82096.0,82095.0,0.00022266]
[1744376125811,0.84110501,82096.0,82095.0,0.12210336]
[1744376126016,0.84110501,82096.0,82095.0,0.00022266]
[1744376126719,0.84110501,82096.0,82095.0,0.12210336]
[1744376127619,0.84110501,82096.0,82095.0,0.00022266]
[1744376129026,0.0609441,82090.0,82084.0,0.121897]
[1744376129226,0.1218955,82085.0,82084.0,0.121897]
[1744376129631,0.1219074,82077.0,82076.0,0.0609538]
[1744376129819,0.1219074,82077.0,82076.0,0.0610078]
[1744376130128,0.1219074,82077.0,82076.0,0.0609538]
[1744376130318,0.1219074,82077.0,82076.0,0.0609938]
[1744376130518,0.3130074,82077.0,82076.0,0.0609938]
[1744376131827,0.0609448,82090.0,82084.0,0.121897]
[1744376132029,0.1531474,82086.0,82084.0,0.121897]
[1744376132217,0.12207816,82085.0,82084.0,0.121897]
[1744376132419,0.12207816,82085.0,82084.0,0.220397]
[1744376133029,0.21427816,82085.0,82084.0,0.121897]
[1744376133327,0.30927816,82085.0,82084.0,0.121897]
[1744376133626,0.30927816,82085.0,82084.0,0.220697]
[1744376134131,0.41840978,82085.0,82084.0,0.220697]
[1744376134318,0.41840978,82085.0,82084.0,0.220737]
[1744376136422,0.41840978,82085.0,82084.0,0.121937]
[1744376136623,0.29651428,82085.0,82075.0,0.36128736]
[1744376136823,0.1219089,82076.0,82075.0,0.12239476]
[1744376137232,0.3139089,82076.0,82075.0,0.12243476]
[1744376137924,0.3139089,82076.0,82075.0,0.18338916]
[1744376138128,0.3139089,82076.0,82075.0,0.24434356]
[1744376142025,0.0982,82087.0,82084.0,0.121897]
[1744376142234,0.2927,82087.0,82084.0,0.121897]
[1744376142728,0.14550883,82086.0,82084.0,0.403997]
[1744376142916,0.26740333,82086.0,82084.0,0.403997]
[1744376143932,0.12207816,82085.0,82084.0,0.403997]
[1744376144121,0.00018266,82085.0,82084.0,0.403997]
[1744376144524,0.12207816,82085.0,82084.0,0.403997]
[1744376144717,0.00018266,82085.0,82084.0,0.403997]
[1744376145422,0.18171952,82093.0,82092.0,0.1218852]
[1744376145617,0.18171952,82093.0,82092.0,0.4826852]
[1744376146221,0.4217299,82109.0,82099.0,0.1218748]
[1744376146222,0.3608,82109.0,82099.0,0.1218748]
[1744376146535,0.21899305,82107.0,82106.0,0.1218644]
[1744376147533,0.21899305,82107.0,82106.0,0.3167644]
[1744376151433,0.00018266,82108.0,82107.0,0.1218629]
[1744376151737,0.12204406,82108.0,82107.0,0.1218629]
[1744376151934,0.12204406,82108.0,82107.0,0.2182629]
[1744376152126,0.12204406,82108.0,82107.0,0.3149629]
[1744376152326,0.12204406,82108.0,82107.0,0.2182629]
[1744376152526,0.12204406,82108.0,82107.0,0.2183029]
[1744376153035,0.12204406,82108.0,82097.0,0.1828082]
[1744376153036,0.1218781,82098.0,82097.0,0.1828082]
[1744376153240,0.1218837,82094.0,82093.0,0.0609418]
[1744376153630,0.2170837,82094.0,82093.0,0.0609418]
[1744376153927,0.2170837,82094.0,82093.0,0.0609818]
[1744376154437,0.3170837,82094.0,82093.0,0.1544818]
[1744376155432,0.42630484,82094.0,82093.0,0.1544818]
[1744376155639,0.30442114,82094.0,82093.0,0.1544818]
[1744376155840,0.30442114,82094.0,82093.0,0.2501818]
[1744376156136,0.42630334,82094.0,82093.0,0.2501818]
[1744376157037,0.30442114,82094.0,82093.0,0.2501818]
[1744376158134,0.42630334,82094.0,82093.0,0.1544818]
[1744376159534,0.51840334,82094.0,82093.0,0.1544818]
[1744376159735,0.51840334,82094.0,82093.0,4e-05]
[1744376160735,0.1828271,82093.0,82092.0,0.1218852]
[1744376161240,0.2792271,82093.0,82092.0,0.1219252]
[1744376161437,0.1895,82093.0,82092.0,0.1219252]
[1744376161842,0.2182837,82093.0,82092.0,0.1219252]
[1744376162038,0.3113837,82093.0,82092.0,0.1218852]
[1744376162242,0.3113837,82093.0,82092.0,0.1219252]
[1744376162545,0.1895,82093.0,82092.0,0.1219252]
[1744376163134,0.3113837,82093.0,82092.0,0.1219252]
[1744376163335,0.1895,82093.0,82092.0,0.1219252]
[1744376163539,0.1218785,82097.0,82095.0,0.0609395]
[1744376163745,0.1218785,82097.0,82096.0,0.1828172]
[1744376163939,0.2129785,82097.0,82096.0,0.1828172]
[1744376164443,0.3084785,82097.0,82096.0,0.1828172]
[1744376165644,0.0911,82097.0,82096.0,0.1828172]
[1744376165844,0.0955,82102.0,82101.0,0.1218718]
[1744376166040,0.2173703,82102.0,82101.0,0.1218718]
[1744376166239,0.3099703,82102.0,82101.0,0.1218718]
[1744376167336,0.0926,82102.0,82101.0,0.4826718]
[1744376167539,0.31337571,82108.0,82107.0,0.1218629]
[1744376168040,0.21917571,82108.0,82107.0,0.1218629]
[1744376170349,0.00018266,82108.0,82107.0,0.1218629]
[1744376170940,0.09678266,82108.0,82107.0,0.1218629]
[1744376171248,0.18978266,82108.0,82107.0,0.1218629]
[1744376171648,0.18978266,82108.0,82098.0,0.13292966]
[1744376171649,0.1218673,82104.0,82103.0,7.29e-05]
[1744376171949,0.1218837,82093.0,82088.0,0.1218904]
[1744376172147,0.1218852,82092.0,82085.0,0.0609471]
[1744376172349,0.3114852,82092.0,82087.0,0.121892]
[1744376172749,0.3114852,82092.0,82091.0,0.00022266]
[1744376173349,0.3114852,82092.0,82091.0,0.12210926]
[1744376173546,0.3114852,82092.0,82080.0,5.4e-05]
[1744376173547,0.1219015,82081.0,82080.0,5.4e-05]
[1744376173850,0.1219015,82081.0,82080.0,0.121957]
[1744376174448,0.3077015,82081.0,82080.0,0.121957]
[1744376174753,0.3077015,82081.0,82080.0,0.121903]
[1744376174946,0.3077015,82081.0,82080.0,0.121943]
[1744376175547,0.3077015,82081.0,82078.0,0.21847]
[1744376175548,0.1219045,82079.0,82078.0,0.21847]
[1744376176151,0.4827045,82079.0,82078.0,0.21847]
[1744376176344,0.4827045,82079.0,82078.0,0.21851]
[1744376176545,0.4827045,82079.0,82078.0,0.21847]
[1744376176744,0.49187791,82079.0,82078.0,0.21851]
[1744376177245,0.69207791,82079.0,82078.0,0.21851]
[1744376177746,0.69207791,82079.0,82078.0,4e-05]
[1744376177949,0.1219134,82073.0,82072.0,0.00018266]
[1744376178355,0.1219134,82073.0,82072.0,0.00022266]
[1744376178650,0.1219134,82073.0,82072.0,0.00018266]
[1744376178845,0.1219134,82073.0,82072.0,0.00022266]
[1744376179046,0.1219342,82060.0,82058.0,0.0609673]
[1744376179241,0.4151342,82059.0,82058.0,0.1219357]
[1744376179739,0.4151342,82059.0,82058.0,0.1219757]
[1744376182851,0.2932,82059.0,82058.0,0.1219757]
[1744376183153,0.00018277,82067.0,82066.0,0.1219238]
[1744376183353,0.12210507,82067.0,82066.0,0.1219238]
[1744376183943,0.12210507,82067.0,82066.0,0.3173238]
[1744376184350,0.22540507,82067.0,82066.0,0.3173238]
[1744376184955,0.18210516,82082.0,82070.0,0.0609583]
[1744376185251,0.1219,82082.0,82081.0,0.1219015]
[1744376186047,0.4827,82082.0,82081.0,0.1219015]
[1744376187355,0.2171,82082.0,82081.0,0.1219015]
[1744376187549,0.5779,82082.0,82081.0,0.1219015]
[1744376189057,0.2171,82082.0,82081.0,0.1219415]
[1744376189247,0.5779,82082.0,82081.0,0.1219415]
[1744376190850,0.5779,82082.0,82073.0,0.00018277]
[1744376190851,0.1219119,82074.0,82073.0,0.00018277]
[1744376191352,0.1219119,82074.0,82073.0,0.00022277]
[1744376191657,0.2151119,82074.0,82073.0,0.00022277]
[1744376193654,0.2151119,82074.0,82073.0,0.00018277]
[1744376193857,0.2151119,82074.0,82073.0,0.00022277]
[1744376195859,0.2151119,82074.0,82073.0,0.12213617]
[1744376197161,0.2151119,82074.0,82073.0,0.12209617]
[1744376197350,0.2151119,82074.0,82073.0,0.00022277]
[1744376197552,0.2151119,82074.0,82073.0,0.00018277]
[1744376197748,0.2151119,82074.0,82073.0,0.00022277]
[1744376202959,0.5759119,82074.0,82073.0,0.00022277]
[1744376203858,0.6745119,82074.0,82073.0,0.00022277]
[1744376204565,0.73379283,82074.0,82073.0,0.00022277]
[1744376206865,0.73379283,82074.0,82073.0,0.12213617]
[1744376207255,0.73379283,82074.0,82073.0,0.22473617]
[1744376207456,0.73379283,82074.0,82073.0,0.32053617]
[1744376208169,0.73379283,82074.0,82073.0,0.22473617]
[1744376208464,0.64059283,82074.0,82073.0,0.32053617]
[1744376209067,0.27979283,82074.0,82073.0,0.32053617]
[1744376209267,0.18119283,82074.0,82073.0,0.32053617]
[1744376209463,0.05928093,82074.0,82073.0,0.32053617]
[1744376209763,0.05928093,82074.0,82073.0,0.42223617]
[1744376210264,0.18119283,82074.0,82073.0,0.42223617]
[1744376210868,0.05928093,82074.0,82073.0,0.78303617]
[1744376211068,0.05928093,82074.0,82073.0,1.04490255]
[1744376212661,0.21899305,82078.0,82077.0,0.1219074]
[1744376213069,0.1219021,82081.0,82080.0,0.121903]
[1744376213367,0.1219021,82081.0,82080.0,0.319803]
[1744376213569,0.2678724,82083.0,82082.0,0.1219]
[1744376214069,0.2678724,82083.0,82082.0,0.3198]
[1744376216469,0.3700724,82083.0,82082.0,0.3198]
[1744376217671,0.2240999,82083.0,82082.0,0.3198]
[1744376217870,0.0609512,82081.0,82077.0,0.1828571]
[1744376218068,0.1219059,82078.0,82077.0,0.1828571]
[1744376218378,0.1219059,82078.0,82077.0,4e-05]
[1744376218578,0.3224059,82078.0,82077.0,4e-05]
[1744376219070,0.1219119,82074.0,82073.0,0.00018277]
[1744376219367,0.4827119,82074.0,82073.0,0.00018277]
[1744376219575,0.6826119,82074.0,82073.0,0.00018277]
[1744376219875,0.1219297,82062.0,82061.0,0.21847]
[1744376220175,0.4827297,82062.0,82061.0,0.21847]
[1744376220365,0.7756297,82062.0,82061.0,0.21851]
[1744376221669,0.7756297,82062.0,82061.0,4e-05]
[1744376222169,0.78771546,82062.0,82061.0,4e-05]
[1744376222370,0.1219475,82050.0,82049.0,0.00487511]
[1744376222570,0.1219475,82050.0,82049.0,0.12682381]
[1744376222777,0.060973,82051.0,82050.0,0.1219475]
[1744376223076,0.1829171,82052.0,82051.0,0.1219461]
[1744376223267,0.1829171,82052.0,82051.0,0.2207461]
[1744376224368,0.3783171,82052.0,82051.0,0.2207461]
[1744376224567,0.3783171,82052.0,82049.0,0.12682411]
[1744376224568,0.1219475,82050.0,82049.0,0.12682411]
[1744376224775,0.1219475,82050.0,82049.0,0.00487511]
[1744376224974,0.3173475,82050.0,82049.0,0.12682411]
[1744376225277,0.3173475,82050.0,82049.0,0.00491511]
[1744376226073,0.3173475,82050.0,82049.0,0.00487511]
[1744376226270,0.3173475,82050.0,82049.0,0.00491511]
[1744376226471,0.3173475,82050.0,82049.0,0.00487511]
[1744376226674,0.3173475,82050.0,82049.0,0.00491511]
[1744376227563,0.3173475,82050.0,82049.0,0.12682411]
[1744376227771,0.3173475,82050.0,82049.0,0.12686411]
[1744376229866,0.1458635,82051.0,82050.0,0.1219475]
[1744376230066,0.2678096,82051.0,82050.0,0.2151475]
[1744376230474,0.1219461,82051.0,82050.0,0.2151475]
[1744376230675,0.1219475,82050.0,82049.0,0.00491511]
[1744376230884,0.1219475,82050.0,82049.0,0.22006411]
[1744376231076,0.3183475,82050.0,82049.0,0.00487511]
[1744376231575,0.3183475,82050.0,82049.0,0.00491511]
[1744376232277,0.3183475,82050.0,82049.0,0.12686411]
[1744376232779,0.3183475,82050.0,82049.0,0.00491511]
[1744376234785,0.3183475,82050.0,82049.0,0.12686411]
[1744376235382,0.3183475,82050.0,82049.0,0.22576411]
[1744376235583,0.3183475,82050.0,82049.0,0.32876411]
[1744376235888,0.3183475,82050.0,82049.0,0.22576411]
[1744376236185,0.14559196,82053.0,82052.0,0.1219446]
[1744376236389,0.14559196,82053.0,82052.0,0.4827446]
[1744376236685,0.00018277,82070.0,82065.0,0.1219253]
[1744376236876,0.00018277,82070.0,82065.0,0.4827253]
[1744376237276,0.00018277,82070.0,82065.0,0.9346253]
[1744376237482,0.00018277,82070.0,82065.0,0.6846253]
[1744376237483,0.0609611,82067.0,82065.0,0.6846253]
[1744376237676,0.00018277,82070.0,82065.0,0.6846653]
[1744376237985,0.30381432,82066.0,82065.0,0.6846653]
[1744376238285,0.18189052,82066.0,82065.0,0.6846653]
[1744376238478,0.30381432,82066.0,82065.0,0.3238653]
[1744376238686,0.18189052,82066.0,82065.0,0.3238653]
[1744376241288,0.1219238,82066.0,82065.0,0.3848271]
[1744376241586,0.1219238,82066.0,82065.0,0.3847871]
[1744376241785,0.3204238,82066.0,82065.0,0.3848271]
[1744376244190,0.3204238,82066.0,82065.0,0.09894]
[1744376244381,0.3204238,82066.0,82065.0,4e-05]
[1744376244581,0.1219267,82064.0,82063.0,0.1219278]
[1744376244984,0.3242267,82064.0,82063.0,0.1219278]
[1744376245393,0.3242267,82064.0,82063.0,0.1219678]
[1744376245582,0.3242267,82064.0,82063.0,0.2153678]
[1744376246193,0.06114187,82070.0,82066.0,0.0609614]
[1744376246483,0.18306267,82070.0,82069.0,0.1219193]
[1744376246891,0.18306267,82070.0,82069.0,0.2195193]
[1744376248891,0.54386267,82070.0,82069.0,0.2195193]
[1744376250093,0.18306267,82070.0,82069.0,0.3164193]
[1744376250388,0.1219267,82064.0,82042.0,0.09745286]
[1744376250588,0.0609649,82062.0,82060.0,0.5436972]
[1744376250783,0.1219312,82061.0,82060.0,0.4217658]
[1744376252695,0.1219312,82061.0,82060.0,0.5186658]
[1744376255296,0.10932571,82062.0,82061.0,0.1219312]
[1744376255493,0.10932571,82062.0,82061.0,0.2240312]
[1744376257387,0.10932571,82069.0,82068.0,0.1219208]
[1744376257580,0.10932571,82069.0,82068.0,0.5776208]
[1744376258382,0.10932571,82069.0,82068.0,0.58978211]
[1744376259096,0.10932571,82069.0,82068.0,0.5776208]
[1744376259296,0.23124501,82069.0,82068.0,0.5776208]
[1744376260090,0.10932571,82069.0,82068.0,0.5776208]
[1744376261287,0.00018277,82070.0,82069.0,0.1219193]
[1744376261489,0.12210057,82070.0,82069.0,0.1219193]
[1744376262491,0.12210057,82070.0,82069.0,0.2246193]
[1744376263503,0.21780057,82070.0,82069.0,0.3274193]
[1744376263800,0.09588277,82070.0,82069.0,0.3274193]
[1744376264095,0.00018277,82070.0,82069.0,0.3274193]
[1744376264395,0.00018277,82070.0,82069.0,0.4281193]
[1744376264891,0.10950848,82070.0,82069.0,0.4281193]
[1744376269511,0.00018277,82070.0,82069.0,0.4281193]
[1744376274799,0.094,82081.0,82080.0,0.121903]
[1744376274999,0.2159015,82081.0,82080.0,0.121903]
[1744376275208,0.4058015,82081.0,82080.0,0.121903]
[1744376275598,0.4058015,82081.0,82080.0,0.121943]
[1744376284110,0.4058015,82081.0,82080.0,4e-05]
[1744376284611,0.1219045,82079.0,82078.0,0.1219054]
[1744376285002,0.3167045,82079.0,82078.0,0.1219054]
[1744376286214,0.3167045,82079.0,82078.0,0.13844904]
[1744376286405,0.3167045,82079.0,82078.0,0.13848904]
[1744376287311,0.3167045,82079.0,82078.0,0.13847549]
[1744376287703,0.1948,82079.0,82078.0,0.13847549]
[1744376288100,0.1948,82079.0,82078.0,0.23377549]
[1744376288607,0.1948,82079.0,82078.0,0.32787549]
[1744376293619,0.0964,82079.0,82078.0,0.32787549]
[1744376295419,0.0946,82080.0,82078.0,0.32787549]
[1744376295420,0.00018277,82089.0,82084.0,0.121897]
[1744376295616,0.1918,82088.0,82084.0,0.49922709]
[1744376296121,0.1918,82088.0,82084.0,0.69822709]
[1744376297223,0.1918,82088.0,82084.0,0.584397]
[1744376297427,0.30440943,82085.0,82084.0,0.584397]
[1744376297919,0.18251393,82085.0,82084.0,0.49923308]
[1744376298124,0.18251393,82085.0,82084.0,0.49919308]
[1744376298327,0.38451393,82085.0,82084.0,0.482737]
[1744376298624,0.38451393,82085.0,82084.0,0.49915381]
[1744376298826,0.50640943,82085.0,82084.0,0.47915381]
[1744376299023,0.50640943,82085.0,82084.0,0.462737]
[1744376299222,0.47001624,82085.0,82084.0,0.462737]
[1744376299423,0.47001624,82085.0,82084.0,0.11835384]
[1744376299724,0.47001624,82085.0,82084.0,0.11835479]
[1744376299925,0.47001624,82085.0,82084.0,0.101937]
[1744376300326,0.47001624,82085.0,82084.0,0.11838703]
[1744376300522,0.47001624,82085.0,82084.0,0.101937]
[1744376300924,0.47001624,82085.0,82084.0,0.1185122]
[1744376301120,0.47001624,82085.0,82084.0,4e-05]
[1744376301321,0.47001624,82085.0,82084.0,0.01661529]
[1744376301517,0.47001624,82085.0,82084.0,0.01657529]
[1744376301723,0.47001624,82085.0,82084.0,0.01661529]
[1744376301923,0.47001624,82085.0,82084.0,4e-05]
[1744376302124,0.3238955,82085.0,82084.0,0.01661582]
[1744376302326,0.1219074,82077.0,82076.0,5.4e-05]
[1744376302632,0.1219134,82073.0,82072.0,0.12209677]
[1744376303028,0.3242134,82073.0,82072.0,0.12209677]
[1744376303428,0.3242134,82073.0,82072.0,0.00018277]
[1744376304330,0.3242134,82073.0,82072.0,0.00022277]
[1744376304731,0.3242134,82073.0,82072.0,0.12213767]
[1744376305825,0.50672733,82073.0,82072.0,0.12213767]
[1744376309023,0.50672733,82073.0,82072.0,0.12209767]
[1744376309224,0.3242134,82073.0,82072.0,0.12213767]
[1744376315133,0.1219238,82066.0,82065.0,5.4e-05]
[1744376315633,0.1219238,82066.0,82059.0,0.0609667]
[1744376315634,0.1219282,82063.0,82059.0,0.0609667]
[1744376315936,0.1219282,82063.0,82062.0,0.5436897]
[1744376316131,0.3227282,82063.0,82062.0,0.5436897]
[1744376316634,0.3227282,82063.0,82062.0,0.1828897]
[1744376320041,0.103,82063.0,82062.0,0.1828897]
[1744376320232,0.0964,82065.0,82064.0,0.1219267]
[1744376320433,0.2183253,82065.0,82064.0,0.1219267]
[1744376320638,0.2183253,82065.0,82064.0,0.3227267]
[1744376320944,0.0964,82065.0,82064.0,0.3227267]
[1744376321133,0.0983,82069.0,82068.0,0.1219208]
[1744376321534,0.2202193,82069.0,82068.0,0.3227208]
[1744376321731,0.0983,82069.0,82068.0,0.3227208]
[1744376322230,0.1826967,82071.0,82070.0,0.1219178]
[1744376322632,0.1826967,82071.0,82070.0,0.3237178]
[1744376324040,0.00018277,82071.0,82070.0,0.3237178]
[1744376327135,0.09548277,82071.0,82070.0,0.3237178]
[1744376327945,0.20496697,82071.0,82070.0,0.3237178]
[1744376328745,0.42238327,82071.0,82070.0,0.3237178]
[1744376329745,0.30046697,82071.0,82070.0,0.3237178]
[1744376330756,0.20496697,82071.0,82070.0,0.3237178]
[1744376332439,0.09548277,82071.0,82070.0,0.3237178]
[1744376335648,0.18888277,82071.0,82070.0,0.3237178]
[1744376336340,0.33484911,82071.0,82070.0,0.3237178]
[1744376337145,0.21899305,82085.0,82070.0,0.6037178]
[1744376337346,0.0048,82096.0,82095.0,0.1218807]
[1744376337539,0.36036249,82124.0,82099.0,0.060937]
[1744376337540,0.0954,82106.0,82099.0,0.060937]
[1744376337847,0.0954,82106.0,82105.0,0.4826659]
[1744376338044,0.2172644,82106.0,82105.0,0.3608]
[1744376338235,0.1218733,82100.0,82099.0,4e-05]
[1744376338633,0.4328106,82100.0,82099.0,0.1218748]
[1744376338838,0.4328106,82100.0,82099.0,0.1219148]
[1744376339056,0.4328106,82100.0,82099.0,4e-05]
[1744376340040,0.5436106,82100.0,82099.0,4e-05]
[1744376340236,0.5436106,82100.0,82097.0,0.00018277]
[1744376340237,0.55566238,82100.0,82097.0,0.00018277]
[1744376340448,0.1218852,82092.0,82091.0,0.1218861]
[1744376341447,0.3242852,82092.0,82091.0,0.1219261]
[1744376343463,0.5742852,82092.0,82091.0,4e-05]
[1744376343648,0.5742852,82092.0,82089.0,0.29089107]
[1744376343649,0.1218881,82090.0,82089.0,0.29089107]
[1744376344355,0.1828424,82087.0,82086.0,0.1218933]
[1744376344743,0.3801424,82087.0,82086.0,0.1218933]
[1744376349154,0.1219059,82079.0,82078.0,0.0609527]
[1744376349752,0.1219059,82079.0,82078.0,0.0609927]
[1744376349949,0.3124059,82079.0,82078.0,0.1578927]
[1744376351156,0.1014,82080.0,82079.0,0.1219045]
[1744376351346,0.0945,82086.0,82085.0,0.1218955]
[1744376351749,0.09664,82087.0,82086.0,0.1218941]
[1744376351949,0.1922,82093.0,82092.0,0.1218852]
[1744376352151,0.0609355,82102.0,82094.0,0.1218822]
[1744376352350,0.1218749,82099.0,82094.0,0.1218822]
[1744376352644,0.0945,82098.0,82094.0,0.1218822]
[1744376353053,0.2163772,82098.0,82094.0,0.1218822]
[1744376353250,0.0977,82103.0,82094.0,0.1218822]
[1744376353455,0.1218604,82109.0,82106.0,0.1218644]
[1744376353456,0.1894,82107.0,82106.0,0.1218644]
[1744376353956,0.0959,82107.0,82106.0,0.1218644]
[1744376354349,0.2177629,82107.0,82106.0,0.1218644]
[1744376355961,0.0959,82107.0,82106.0,0.1218644]
[1744376356558,0.2177629,82107.0,82106.0,0.1218644]
[1744376356951,0.0959,82107.0,82106.0,0.1218644]
[1744376359563,0.00018277,82115.0,82114.0,0.1218525]
[1744376360157,0.00018277,82115.0,82114.0,0.2166525]
[1744376361565,0.00018277,82115.0,82114.0,0.2096525]
[1744376362364,0.00018277,82115.0,82114.0,0.3085525]
[1744376363652,0.00018277,82115.0,82114.0,0.4071525]
[1744376364765,0.12203377,82115.0,82114.0,0.3123525]
[1744376365168,0.12203377,82115.0,82114.0,0.3123925]
[1744376365570,0.00018277,82115.0,82114.0,0.3123925]
[1744376369166,0.0048,82120.0,82119.0,0.1218451]
[1744376369362,0.0048,82120.0,82119.0,0.4826451]
[1744376369861,0.0048,82120.0,82119.0,0.6790451]
[1744376371267,0.0048,82120.0,82119.0,0.6790851]
[1744376372763,0.00018266,82128.0,82127.0,0.1218332]
[1744376373162,0.00018266,82128.0,82127.0,0.4118332]
[1744376375271,0.00018266,82128.0,82127.0,0.3187332]
[1744376376072,0.0953,82135.0,82134.0,0.1218228]
[1744376376272,0.0953,82135.0,82134.0,0.4826228]
[1744376376572,0.0953,82135.0,82134.0,0.6747228]
[1744376379367,0.3183213,82135.0,82134.0,0.6747228]
[1744376381574,0.0953,82135.0,82134.0,0.6747228]
[1744376381775,0.1021,82142.0,82141.0,0.1218124]
[1744376382079,0.09698266,82143.0,82142.0,0.121811]
[1744376382375,0.00018266,82143.0,82142.0,0.322111]
[1744376382976,0.00018266,82143.0,82142.0,0.33111142]
[1744376386177,0.00018266,82143.0,82142.0,0.23131142]
[1744376386375,0.19748266,82143.0,82142.0,0.23131142]
[1744376386575,0.19748266,82143.0,82142.0,0.23135142]
[1744376388677,0.19748266,82143.0,82142.0,0.222351]
[1744376389070,0.19748266,82143.0,82142.0,0.222311]
[1744376389373,0.31929216,82143.0,82142.0,0.222311]